[Event "FIDE World Cup 2013"]
[Site "TromsÃ¸"]
[Date "2013.08.13"]
[Round "1.5"]
[White "Ramirez, Alejandro"]
[Black "Tomashevsky, Evgeny"]
[Result "0-1"]
[ECO "A06"]
[WhiteElo "2583"]
[BlackElo "2709"]
[PlyCount "78"]
[EventDate "2013.??.??"]
[EventCountry "NOR"]
[TimeControl "600+10"]

1. Nf3 {[%emt 0:00:00]} d5 {[%emt 0:00:00]} 2. d4 {[%emt 0:00:00]} c6 {[%emt 0:
00:00]} 3. c4 {[%emt 0:00:00]} e6 {[%emt 0:00:00]} 4. Qc2 {[%emt 0:00:34]} dxc4
{[%emt 0:00:04]} 5. Qxc4 {[%emt 0:00:07]} Nf6 {[%emt 0:00:02]} 6. Bg5 {[%emt 0:
00:38]} b5 {[%emt 0:00:16]} 7. Qc2 {[%emt 0:00:07]} Bb7 {[%emt 0:00:12]} 8. e4
{[%emt 0:00:37]} Nbd7 {[%emt 0:01:24]} 9. Nbd2 {[%emt 0:00:35]} h6 {[%emt 0:00:
07]} 10. Bh4 {[%emt 0:00:24]} Qb6 {[%emt 0:02:13]} 11. a4 {[%emt 0:01:04]} a6 {
[%emt 0:00:03]} 12. Be2 {[%emt 0:00:32]} g5 {[%emt 0:01:01]} 13. Bg3 {[%emt 0:
00:02]} Nh5 {[%emt 0:00:53]} 14. O-O {[%emt 0:02:51]} Nxg3 {[%emt 0:00:07]} 15.
hxg3 {[%emt 0:00:01]} g4 {[%emt 0:00:25]} 16. Nh4 {[%emt 0:00:35]} Qxd4 {[%emt
0:00:04]} 17. Bxg4 {[%emt 0:00:32]} Bg7 {[%emt 0:00:46]} 18. axb5 {[%emt 0:00:
32]} cxb5 {[%emt 0:01:16]} 19. Nhf3 {[%emt 0:00:37]} Qc5 {[%emt 0:00:20]} 20.
Qb3 {[%emt 0:00:20]} O-O {[%emt 0:00:09]} 21. Rac1 {[%emt 0:00:56]} Qb6 {[%emt
0:00:01]} 22. Rfd1 {[%emt 0:00:03]} Rac8 {[%emt 0:00:09]} 23. Rxc8 {[%emt 0:00:
21]} Rxc8 {[%emt 0:00:02]} 24. Bh5 {[%emt 0:00:25]} Nf6 {[%emt 0:00:15]} 25. g4
{[%emt 0:00:08]} Qc5 {[%emt 0:01:27]} 26. Qd3 {[%emt 0:00:48]} Nxh5 {[%emt 0:
00:31]} 27. gxh5 {[%emt 0:00:01]} Bxb2 {[%emt 0:00:57]} 28. e5 {[%emt 0:01:15]}
Bxe5 {[%emt 0:00:34]} 29. Ne4 {[%emt 0:00:01]} Bxe4 {[%emt 0:00:07]} 30. Qxe4 {
[%emt 0:00:02]} Bg7 {[%emt 0:00:12]} 31. Qb7 {[%emt 0:00:16]} a5 {[%emt 0:00:
02]} 32. Rd7 {[%emt 0:00:12]} Rf8 {[%emt 0:00:04]} 33. g4 {[%emt 0:00:38]} a4 {
[%emt 0:00:04]} 34. Nh4 {[%emt 0:00:13]} a3 {[%emt 0:00:22]} 35. Qa6 {[%emt 0:
00:09]} b4 {[%emt 0:00:23]} 36. Ng6 {[%emt 0:00:09]} b3 {[%emt 0:00:52]} 37.
Nxf8 {[%emt 0:00:09]} b2 {[%emt 0:00:06]} 38. Nxe6 b1=Q+ {[%emt 0:00:05]} 39.
Kh2 {[%emt 0:00:23]} Qxf2+ {[%emt 0:00:02]} 0-1

[Event "FIDE World Cup 2013"]
[Site "TromsÃ¸"]
[Date "2013.08.13"]
[Round "1.5"]
[White "Riazantsev, Alexander"]
[Black "Felgaer, Ruben"]
[Result "0-1"]
[ECO "D11"]
[WhiteElo "2708"]
[BlackElo "2586"]
[PlyCount "86"]
[EventDate "2013.??.??"]
[EventCountry "NOR"]
[TimeControl "600+10"]

1. d4 {[%emt 0:00:00]} d5 {[%emt 0:00:00]} 2. c4 {[%emt 0:00:00]} c6 {[%emt 0:
00:00]} 3. Nf3 {[%emt 0:00:00]} Nf6 {[%emt 0:00:00]} 4. g3 {[%emt 0:00:00]} Bf5
{[%emt 0:00:05]} 5. Nc3 {[%emt 0:00:00]} e6 {[%emt 0:00:01]} 6. Nh4 {[%emt 0:
00:15]} Bg4 {[%emt 0:00:44]} 7. f3 {[%emt 0:00:41]} Bh5 {[%emt 0:00:11]} 8. Qb3
{[%emt 0:00:01]} Qb6 {[%emt 0:01:16]} 9. c5 {[%emt 0:00:31]} Qc7 {[%emt 0:00:
26]} 10. Bf4 {[%emt 0:00:01]} Qc8 {[%emt 0:00:01]} 11. Bh3 {[%emt 0:00:56]} Be7
{[%emt 0:00:21]} 12. O-O {[%emt 0:00:08]} Nbd7 {[%emt 0:00:31]} 13. e4 {[%emt
0:01:05]} O-O {[%emt 0:00:35]} 14. g4 {[%emt 0:02:12]} Bg6 {[%emt 0:01:40]} 15.
Nxg6 {[%emt 0:01:35]} hxg6 {[%emt 0:00:01]} 16. e5 {[%emt 0:01:55]} Ne8 {[%emt
0:00:18]} 17. Be3 {[%emt 0:00:43]} b6 {[%emt 0:00:19]} 18. cxb6 {[%emt 0:00:01]
} Nxb6 {[%emt 0:00:10]} 19. Qc2 {[%emt 0:00:26]} c5 {[%emt 0:00:07]} 20. b3 {
[%emt 0:00:49]} cxd4 {[%emt 0:00:40]} 21. Bxd4 {[%emt 0:00:01]} Bc5 {[%emt 0:
00:04]} 22. Qf2 {[%emt 0:00:05]} Bxd4 {[%emt 0:00:33]} 23. Qxd4 {[%emt 0:00:01]
} g5 {[%emt 0:00:38]} 24. f4 {[%emt 0:00:10]} gxf4 {[%emt 0:00:05]} 25. Rxf4 {
[%emt 0:00:01]} Qd8 {[%emt 0:00:24]} 26. g5 {[%emt 0:00:54]} Qxg5+ 27. Kh1 g6 {
[%emt 0:01:44]} 28. Rg1 {[%emt 0:00:19]} Qh6 {[%emt 0:00:14]} 29. Rh4 {[%emt 0:
00:54]} Qg7 {[%emt 0:00:01]} 30. Rhg4 {[%emt 0:00:15]} Rc8 {[%emt 0:00:29]} 31.
Rg5 {[%emt 0:00:08]} Rc6 {[%emt 0:00:20]} 32. Ne2 {[%emt 0:00:07]} Nd7 {[%emt
0:00:55]} 33. Nf4 {[%emt 0:00:04]} Kh7 {[%emt 0:00:55]} 34. Qd3 {[%emt 0:00:56]
} Nc5 {[%emt 0:00:47]} 35. Qc2 {[%emt 0:00:07]} Ne4 {[%emt 0:00:51]} 36. Qxc6 {
[%emt 0:00:02]} Qh6 {[%emt 0:00:00]} 37. Nxe6 {[%emt 0:00:34]} fxe6 {[%emt 0:
00:20]} 38. R5g2 {[%emt 0:00:09]} Qxh3 {[%emt 0:00:06]} 39. Qc2 {[%emt 0:00:09]
} Qf3 {[%emt 0:00:05]} 40. Rc1 {[%emt 0:00:12]} Nf2+ {[%emt 0:00:05]} 41. Kg1 {
[%emt 0:00:00]} Nh3+ {[%emt 0:00:02]} 42. Kh1 {[%emt 0:00:01]} Qf1+ {[%emt 0:
00:08]} 43. Rg1 {[%emt 0:00:04]} Nf2+ {[%emt 0:00:05]} 0-1

[Event "FIDE World Cup 2013"]
[Site "TromsÃ¸"]
[Date "2013.08.13"]
[Round "1.5"]
[White "Safarli, Eltaj"]
[Black "Amin, Bassem"]
[Result "1-0"]
[ECO "C47"]
[WhiteElo "2660"]
[BlackElo "2650"]
[PlyCount "101"]
[EventDate "2013.??.??"]
[EventCountry "NOR"]
[TimeControl "600+10"]

1. e4 {[%emt 0:00:00]} e5 {[%emt 0:00:00]} 2. Nf3 {[%emt 0:00:00]} Nc6 {[%emt
0:00:00]} 3. Nc3 {[%emt 0:00:00]} Nf6 {[%emt 0:00:00]} 4. g3 {[%emt 0:00:00]}
g6 {[%emt 0:00:13]} 5. Bg2 {[%emt 0:00:00]} Bg7 {[%emt 0:00:01]} 6. O-O {[%emt
0:00:00]} O-O {[%emt 0:00:02]} 7. d3 {[%emt 0:00:00]} d6 {[%emt 0:00:34]} 8. h3
Ne8 {[%emt 0:00:43]} 9. Nd5 {[%emt 0:00:06]} Be6 {[%emt 0:00:03]} 10. c3 h6 11.
d4 {[%emt 0:00:49]} f5 {[%emt 0:00:24]} 12. Nh4 {[%emt 0:03:13]} Bxd5 {[%emt 0:
00:15]} 13. exd5 {[%emt 0:00:02]} Ne7 {[%emt 0:00:02]} 14. dxe5 {[%emt 0:00:18]
} dxe5 {[%emt 0:00:03]} 15. Qb3 {[%emt 0:00:27]} Nd6 {[%emt 0:00:07]} 16. Nf3 {
[%emt 0:00:01]} Kh7 {[%emt 0:00:38]} 17. Re1 {[%emt 0:00:11]} e4 {[%emt 0:00:
32]} 18. Nd4 {[%emt 0:00:00]} Bxd4 {[%emt 0:00:14]} 19. cxd4 {[%emt 0:00:01]}
Qe8 {[%emt 0:00:05]} 20. Bf4 {[%emt 0:00:57]} Qf7 {[%emt 0:03:07]} 21. Bxd6 {
[%emt 0:00:39]} cxd6 {[%emt 0:00:01]} 22. Qxb7 Nxd5 {[%emt 0:01:41]} 23. Qxf7+
{[%emt 0:00:17]} Rxf7 {[%emt 0:00:01]} 24. f3 {[%emt 0:00:02]} Re8 {[%emt 0:00:
29]} 25. fxe4 {[%emt 0:00:08]} Rfe7 {[%emt 0:00:04]} 26. e5 {[%emt 0:00:09]}
Nb4 {[%emt 0:00:20]} 27. Rad1 {[%emt 0:00:11]} Nxa2 {[%emt 0:00:35]} 28. Ra1 {
[%emt 0:03:58]} Nb4 {[%emt 0:00:09]} 29. Ra4 {[%emt 0:00:03]} Rb8 {[%emt 0:01:
18]} 30. e6 {[%emt 0:01:00]} Kg7 {[%emt 0:00:22]} 31. d5 {[%emt 0:00:22]} Kf6 {
[%emt 0:00:23]} 32. Re3 {[%emt 0:00:02]} Rb5 {[%emt 0:00:26]} 33. Bf1 {[%emt 0:
00:37]} Rb6 {[%emt 0:01:16]} 34. Bc4 {[%emt 0:00:10]} a6 {[%emt 0:00:32]} 35.
Ra5 {[%emt 0:00:27]} Rc7 {[%emt 0:00:06]} 36. b3 {[%emt 0:00:02]} Ke7 {[%emt 0:
00:32]} 37. Kf2 {[%emt 0:00:14]} Rb8 {[%emt 0:00:15]} 38. Re2 {[%emt 0:00:37]}
Rbc8 {[%emt 0:00:22]} 39. Ke3 {[%emt 0:00:09]} Rc5 {[%emt 0:00:18]} 40. Rxc5 {
[%emt 0:00:07]} Rxc5 {[%emt 0:00:02]} 41. Kd4 {[%emt 0:00:05]} Ra5 {[%emt 0:00:
19]} 42. Rf2 {[%emt 0:00:29]} Ra1 {[%emt 0:00:03]} 43. Kc3 {[%emt 0:00:01]} a5
{[%emt 0:00:05]} 44. g4 {[%emt 0:00:01]} Rc1+ {[%emt 0:00:24]} 45. Kd2 {[%emt
0:01:02]} Ra1 {[%emt 0:00:01]} 46. Rf3 {[%emt 0:00:09]} Ra2+ {[%emt 0:00:05]}
47. Kc1 {[%emt 0:00:24]} a4 {[%emt 0:00:13]} 48. gxf5 {[%emt 0:00:03]} Rc2+ {
[%emt 0:00:17]} 49. Kd1 {[%emt 0:00:11]} a3 {[%emt 0:00:15]} 50. f6+ {[%emt 0:
00:01]} Kf8 {[%emt 0:00:09]} 51. f7 {[%emt 0:00:15]} 1-0

[Event "FIDE World Cup 2013"]
[Site "TromsÃ¸"]
[Date "2013.08.13"]
[Round "1.5"]
[White "Shirov, Alexei"]
[Black "Hou, Yifan"]
[Result "1-0"]
[ECO "D38"]
[WhiteElo "2696"]
[BlackElo "2600"]
[PlyCount "83"]
[EventDate "2013.??.??"]
[EventCountry "NOR"]
[TimeControl "600+10"]

1. d4 {[%emt 0:00:00]} Nf6 {[%emt 0:00:00]} 2. c4 {[%emt 0:00:00]} e6 {[%emt 0:
00:00]} 3. Nf3 {[%emt 0:00:00]} d5 {[%emt 0:00:00]} 4. Nc3 {[%emt 0:00:00]} Bb4
{[%emt 0:00:01]} 5. Qa4+ {[%emt 0:00:00]} Nc6 {[%emt 0:00:00]} 6. e3 {[%emt 0:
00:00]} O-O {[%emt 0:00:02]} 7. Qc2 {[%emt 0:00:01]} dxc4 {[%emt 0:00:02]} 8.
Bxc4 {[%emt 0:00:02]} Bd6 {[%emt 0:00:01]} 9. O-O {[%emt 0:00:28]} e5 {[%emt 0:
00:03]} 10. dxe5 {[%emt 0:00:06]} Nxe5 {[%emt 0:00:02]} 11. Nxe5 {[%emt 0:00:
03]} Bxe5 {[%emt 0:00:02]} 12. h3 {[%emt 0:02:26]} c6 {[%emt 0:00:33]} 13. a4 {
[%emt 0:00:36]} a5 {[%emt 0:01:01]} 14. b3 {[%emt 0:00:36]} Re8 {[%emt 0:01:29]
} 15. Bb2 {[%emt 0:00:17]} Be6 {[%emt 0:00:04]} 16. Rfd1 {[%emt 0:01:26]} Qb6 {
[%emt 0:00:14]} 17. Bxe6 {[%emt 0:02:37]} Rxe6 {[%emt 0:00:01]} 18. Rd3 {[%emt
0:00:01]} Rae8 {[%emt 0:00:08]} 19. Rad1 {[%emt 0:00:02]} h6 {[%emt 0:00:02]}
20. Ne2 {[%emt 0:00:59]} Nd5 {[%emt 0:00:22]} 21. Bxe5 {[%emt 0:00:18]} Rxe5 {
[%emt 0:00:02]} 22. Qd2 {[%emt 0:00:32]} Re4 {[%emt 0:00:23]} 23. Nc3 {[%emt 0:
00:18]} Nxc3 {[%emt 0:00:05]} 24. Qxc3 {[%emt 0:00:04]} Qb4 {[%emt 0:00:28]}
25. Qc2 {[%emt 0:00:11]} g6 {[%emt 0:01:05]} 26. Rd4 {[%emt 0:00:25]} Rxd4 {
[%emt 0:00:53]} 27. Rxd4 {[%emt 0:00:02]} Qb6 {[%emt 0:00:01]} 28. Qd3 {[%emt
0:00:07]} Qc5 {[%emt 0:00:08]} 29. g4 {[%emt 0:00:40]} h5 {[%emt 0:00:48]} 30.
Kg2 {[%emt 0:00:06]} Kg7 {[%emt 0:00:09]} 31. Rd7 {[%emt 0:00:29]} hxg4 {[%emt
0:00:15]} 32. hxg4 {[%emt 0:00:02]} Qb4 33. Kf3 {[%emt 0:01:48]} Re6 {[%emt 0:
03:36]} 34. Qc4 {[%emt 0:00:32]} Rf6+ {[%emt 0:00:52]} 35. Ke2 {[%emt 0:00:02]}
Qa3 {[%emt 0:00:01]} 36. Qc3 {[%emt 0:00:11]} g5 {[%emt 0:00:39]} 37. f4 {
[%emt 0:00:02]} Qa2+ {[%emt 0:00:49]} 38. Rd2 {[%emt 0:00:04]} Qb1 {[%emt 0:00:
03]} 39. Rd6 {[%emt 0:00:08]} Qg6 {[%emt 0:00:11]} 40. f5 {[%emt 0:00:29]} Qh6
{[%emt 0:00:01]} 41. Qe5 {[%emt 0:00:02]} b5 {[%emt 0:01:12]} 42. Rxc6 {[%emt
0:00:07]} 1-0

[Event "FIDE World Cup 2013"]
[Site "TromsÃ¸"]
[Date "2013.08.13"]
[Round "1.5"]
[White "Zvjaginsev, Vadim"]
[Black "Swiercz, Dariusz"]
[Result "1/2-1/2"]
[ECO "A22"]
[WhiteElo "2659"]
[BlackElo "2650"]
[PlyCount "47"]
[EventDate "2013.??.??"]
[EventCountry "NOR"]
[TimeControl "600+10"]

1. c4 {[%emt 0:00:00]} Nf6 {[%emt 0:00:00]} 2. Nc3 {[%emt 0:00:00]} e5 {[%emt
0:00:00]} 3. g3 {[%emt 0:00:00]} c6 {[%emt 0:00:01]} 4. Nf3 {[%emt 0:00:02]} e4
{[%emt 0:00:01]} 5. Nd4 {[%emt 0:00:02]} Qb6 {[%emt 0:00:01]} 6. e3 {[%emt 0:
00:03]} d5 {[%emt 0:00:01]} 7. Qb3 {[%emt 0:00:05]} dxc4 {[%emt 0:00:05]} 8.
Bxc4 {[%emt 0:00:16]} Qxb3 {[%emt 0:00:02]} 9. Bxb3 {[%emt 0:00:06]} Na6 {
[%emt 0:00:09]} 10. O-O {[%emt 0:01:12]} Nc5 {[%emt 0:00:40]} 11. Bc2 {[%emt 0:
00:03]} Bh3 {[%emt 0:00:04]} 12. Rd1 {[%emt 0:00:08]} O-O-O {[%emt 0:03:13]}
13. b4 {[%emt 0:00:35]} Nd3 {[%emt 0:00:55]} 14. Nxe4 {[%emt 0:01:14]} Nxb4 {
[%emt 0:00:01]} 15. Nxf6 {[%emt 0:01:12]} Nxc2 {[%emt 0:00:10]} 16. Nxc2 {
[%emt 0:00:03]} gxf6 {[%emt 0:00:03]} 17. Bb2 {[%emt 0:00:29]} Be7 {[%emt 0:00:
01]} 18. f3 {[%emt 0:01:21]} Rhg8 {[%emt 0:00:46]} 19. Kf2 {[%emt 0:00:16]} h5
{[%emt 0:00:26]} 20. Nd4 {[%emt 0:00:43]} Rg5 {[%emt 0:00:25]} 21. Ne2 {[%emt
0:00:42]} h4 {[%emt 0:04:49]} 22. Nf4 {[%emt 0:00:20]} hxg3+ {[%emt 0:00:02]}
23. hxg3 {[%emt 0:00:02]} Be6 {[%emt 0:00:12]} 24. Nxe6 {[%emt 0:01:26]}
1/2-1/2

[Event "FIDE World Cup 2013"]
[Site "TromsÃ¸"]
[Date "2013.08.13"]
[Round "1.6"]
[White "Alekseev, Evgeny"]
[Black "Adhiban, B."]
[Result "1/2-1/2"]
[ECO "B40"]
[WhiteElo "2714"]
[BlackElo "2567"]
[PlyCount "111"]
[EventDate "2013.??.??"]
[EventCountry "NOR"]
[TimeControl "600+10"]

1. e4 {[%emt 0:00:00]} c5 {[%emt 0:00:00]} 2. Nf3 {[%emt 0:00:00]} e6 {[%emt 0:
00:00]} 3. c3 {[%emt 0:00:00]} d5 {[%emt 0:00:00]} 4. exd5 {[%emt 0:00:00]}
Qxd5 {[%emt 0:00:00]} 5. d4 {[%emt 0:00:00]} Nf6 {[%emt 0:00:00]} 6. Be2 {
[%emt 0:00:01]} Nc6 {[%emt 0:00:05]} 7. O-O {[%emt 0:00:07]} Be7 {[%emt 0:00:
07]} 8. c4 {[%emt 0:00:07]} Qd7 {[%emt 0:01:34]} 9. dxc5 {[%emt 0:00:12]} Bxc5
{[%emt 0:00:02]} 10. Nc3 {[%emt 0:00:15]} O-O {[%emt 0:00:05]} 11. Bg5 {[%emt
0:01:14]} Qc7 {[%emt 0:00:05]} 12. Bxf6 {[%emt 0:01:37]} gxf6 {[%emt 0:00:01]}
13. Qd2 {[%emt 0:00:24]} Kg7 {[%emt 0:01:24]} 14. Rad1 {[%emt 0:00:23]} Rd8 {
[%emt 0:00:03]} 15. Qc1 {[%emt 0:00:02]} Bd7 {[%emt 0:01:12]} 16. Ne4 {[%emt 0:
00:04]} Be7 {[%emt 0:00:03]} 17. Ng3 {[%emt 0:03:13]} Rg8 {[%emt 0:01:55]} 18.
Qc3 {[%emt 0:00:21]} Kh8 {[%emt 0:00:37]} 19. Nh5 {[%emt 0:00:05]} Ne5 {[%emt
0:01:33]} 20. Nxe5 {[%emt 0:00:38]} fxe5 {[%emt 0:00:02]} 21. Rxd7 {[%emt 0:01:
42]} Qxd7 {[%emt 0:00:09]} 22. Qxe5+ {[%emt 0:00:01]} f6 {[%emt 0:00:07]} 23.
Nxf6 {[%emt 0:00:02]} Bxf6 {[%emt 0:00:19]} 24. Qxf6+ {[%emt 0:00:01]} Qg7 {
[%emt 0:00:15]} 25. Qxg7+ {[%emt 0:00:11]} Kxg7 {[%emt 0:00:01]} 26. Bf3 {
[%emt 0:00:42]} Rac8 {[%emt 0:01:18]} 27. b3 {[%emt 0:00:10]} b6 {[%emt 0:00:
02]} 28. Re1 {[%emt 0:00:06]} Kf6 {[%emt 0:00:02]} 29. g3 {[%emt 0:00:52]} Rgd8
{[%emt 0:00:17]} 30. Re2 {[%emt 0:00:05]} Rd4 {[%emt 0:00:29]} 31. Be4 {[%emt
0:00:22]} h6 {[%emt 0:00:14]} 32. Kg2 {[%emt 0:00:33]} Rcd8 {[%emt 0:00:03]}
33. Re3 {[%emt 0:00:10]} a5 {[%emt 0:00:25]} 34. a4 {[%emt 0:00:21]} Rd2 {
[%emt 0:00:34]} 35. h4 {[%emt 0:00:07]} Rg8 {[%emt 0:01:38]} 36. Bf3 {[%emt 0:
00:26]} Rgd8 {[%emt 0:00:01]} 37. Be4 {[%emt 0:00:30]} Rg8 {[%emt 0:00:02]} 38.
Kf3 {[%emt 0:00:28]} Rf8 {[%emt 0:00:38]} 39. Kg2 {[%emt 0:00:04]} Ke5 {[%emt
0:00:24]} 40. Bf3+ {[%emt 0:00:22]} Kd6 {[%emt 0:00:06]} 41. g4 {[%emt 0:00:07]
} Rb2 {[%emt 0:00:04]} 42. Kg3 {[%emt 0:00:11]} Rb1 {[%emt 0:00:06]} 43. Be4 {
[%emt 0:00:20]} Rf1 {[%emt 0:00:14]} 44. f3 {[%emt 0:00:16]} Rg1+ {[%emt 0:00:
06]} 45. Kh2 {[%emt 0:00:05]} Rd1 {[%emt 0:00:15]} 46. Kg3 {[%emt 0:00:05]}
Rg1+ {[%emt 0:00:25]} 47. Kh2 {[%emt 0:00:05]} Rd1 {[%emt 0:00:23]} 48. Bg6 {
[%emt 0:00:19]} Rd4 {[%emt 0:00:17]} 49. Kg3 {[%emt 0:00:07]} Rd1 {[%emt 0:00:
01]} 50. Kg2 {[%emt 0:00:26]} Rd2+ {[%emt 0:00:06]} 51. Kg3 {[%emt 0:00:01]}
Rd1 {[%emt 0:00:01]} 52. Kg2 {[%emt 0:00:23]} Rd2+ {[%emt 0:00:08]} 53. Kh3 {
[%emt 0:00:03]} Rd1 {[%emt 0:00:17]} 54. Kg2 {[%emt 0:00:14]} Rd2+ {[%emt 0:00:
05]} 55. Kg3 {[%emt 0:00:01]} Rd1 {[%emt 0:00:02]} 56. Kg2 {[%emt 0:00:19] Ke5}
1/2-1/2

[Event "FIDE World Cup 2013"]
[Site "TromsÃ¸"]
[Date "2013.08.13"]
[Round "1.6"]
[White "Amin, Bassem"]
[Black "Safarli, Eltaj"]
[Result "1/2-1/2"]
[ECO "B30"]
[WhiteElo "2650"]
[BlackElo "2660"]
[PlyCount "80"]
[EventDate "2013.??.??"]
[EventCountry "NOR"]
[TimeControl "600+10"]

1. e4 {[%emt 0:00:00]} c5 {[%emt 0:00:00]} 2. Nf3 {[%emt 0:00:00]} Nc6 {[%emt
0:00:00]} 3. g3 {[%emt 0:00:00]} g6 {[%emt 0:00:00]} 4. Bg2 {[%emt 0:00:00]}
Bg7 {[%emt 0:00:00]} 5. O-O {[%emt 0:00:00]} d6 {[%emt 0:00:02]} 6. c3 {[%emt
0:00:04]} e5 {[%emt 0:00:02]} 7. d3 {[%emt 0:00:15]} Nge7 {[%emt 0:00:02]} 8.
a3 {[%emt 0:00:11]} O-O {[%emt 0:00:08]} 9. b4 {[%emt 0:00:02]} h6 {[%emt 0:00:
06]} 10. Nbd2 {[%emt 0:00:09]} Be6 {[%emt 0:00:02]} 11. Nb3 {[%emt 0:00:02]} c4
{[%emt 0:00:03]} 12. dxc4 {[%emt 0:00:01]} Bxc4 {[%emt 0:00:01]} 13. Re1 {
[%emt 0:00:02]} Qc7 {[%emt 0:00:09]} 14. Nfd2 {[%emt 0:00:11]} Be6 {[%emt 0:00:
02]} 15. a4 {[%emt 0:00:03]} a5 {[%emt 0:01:12]} 16. b5 {[%emt 0:00:01]} Nb8 {
[%emt 0:00:09]} 17. Ba3 {[%emt 0:00:04]} Nd7 {[%emt 0:00:31]} 18. Nf1 {[%emt 0:
00:34]} Nc5 {[%emt 0:00:43]} 19. Nxc5 {[%emt 0:00:30]} dxc5 {[%emt 0:00:01]}
20. Ne3 {[%emt 0:00:03]} Rfd8 {[%emt 0:00:36]} 21. Qc2 {[%emt 0:00:08]} Nc8 {
[%emt 0:00:52]} 22. Bf1 {[%emt 0:00:28]} c4 {[%emt 0:00:38]} 23. Red1 {[%emt 0:
01:32]} Nb6 {[%emt 0:00:05]} 24. Be2 {[%emt 0:00:45]} Bf8 {[%emt 0:00:29]} 25.
Bxf8 {[%emt 0:00:05]} Kxf8 {[%emt 0:00:01]} 26. Bg4 {[%emt 0:00:21]} Qe7 {
[%emt 0:01:32]} 27. Bxe6 {[%emt 0:00:07]} Qxe6 {[%emt 0:00:01]} 28. Qc1 {[%emt
0:00:15]} h5 {[%emt 0:00:30]} 29. Ra2 {[%emt 0:00:27]} Kg7 {[%emt 0:01:35]} 30.
Rad2 {[%emt 0:00:13]} Rxd2 {[%emt 0:00:19]} 31. Rxd2 {[%emt 0:00:01]} Qe7 {
[%emt 0:01:25]} 32. Qd1 {[%emt 0:00:45]} Qa3 {[%emt 0:00:05]} 33. Rd6 {[%emt 0:
00:14]} Nxa4 {[%emt 0:00:09]} 34. Nxc4 {[%emt 0:00:11]} Qa2 {[%emt 0:00:13]}
35. Nxe5 {[%emt 0:00:57]} Nxc3 {[%emt 0:00:03]} 36. Qd3 {[%emt 0:00:10]} Qb1+ {
[%emt 0:00:20]} 37. Qxb1 {[%emt 0:03:33]} Nxb1 38. Rd1 {[%emt 0:01:33]} Nc3 {
[%emt 0:00:06]} 39. Rd7 {[%emt 0:00:10]} a4 {[%emt 0:00:09]} 40. Rxf7+ {[%emt
0:00:02]} Kg8 {[%emt 0:00:12]} 1/2-1/2

[Event "FIDE World Cup 2013"]
[Site "TromsÃ¸"]
[Date "2013.08.13"]
[Round "1.6"]
[White "Bologan, Viktor"]
[Black "Hracek, Zbynek"]
[Result "1-0"]
[ECO "C85"]
[WhiteElo "2672"]
[BlackElo "2635"]
[PlyCount "95"]
[EventDate "2013.??.??"]
[EventCountry "NOR"]
[TimeControl "600+10"]

1. e4 {[%emt 0:00:00]} e5 {[%emt 0:00:00]} 2. Nf3 {[%emt 0:00:00]} Nc6 {[%emt
0:00:00]} 3. Bb5 {[%emt 0:00:00]} a6 {[%emt 0:00:00]} 4. Ba4 {[%emt 0:00:00]}
Nf6 {[%emt 0:00:00]} 5. O-O {[%emt 0:00:00]} Be7 {[%emt 0:00:00]} 6. Bxc6 {
[%emt 0:00:01]} dxc6 {[%emt 0:00:00]} 7. d3 {[%emt 0:00:01]} Nd7 {[%emt 0:00:
00]} 8. b3 {[%emt 0:00:02]} O-O {[%emt 0:00:05]} 9. Bb2 {[%emt 0:00:04]} f6 {
[%emt 0:00:01]} 10. Nc3 {[%emt 0:00:22]} Nc5 {[%emt 0:00:08]} 11. d4 {[%emt 0:
00:33]} exd4 {[%emt 0:00:04]} 12. Nxd4 {[%emt 0:00:01]} Re8 {[%emt 0:00:18]}
13. f3 {[%emt 0:00:12]} Ne6 {[%emt 0:00:14]} 14. Nf5 {[%emt 0:00:22]} Bc5+ {
[%emt 0:00:26]} 15. Kh1 {[%emt 0:00:02]} Qxd1 {[%emt 0:00:05]} 16. Raxd1 {
[%emt 0:00:03]} a5 {[%emt 0:00:21]} 17. Rfe1 {[%emt 0:02:57]} Nf8 {[%emt 0:02:
15]} 18. g4 {[%emt 0:00:26]} Ng6 {[%emt 0:01:18]} 19. Kg2 {[%emt 0:01:19]} Be6
{[%emt 0:00:18]} 20. a4 {[%emt 0:00:27]} Rad8 {[%emt 0:01:16]} 21. Kg3 {[%emt
0:00:47]} Kf7 {[%emt 0:02:01]} 22. Ne2 {[%emt 0:00:14]} Bb4 {[%emt 0:00:24]}
23. Bc3 {[%emt 0:00:17]} c5 {[%emt 0:00:07]} 24. Bxb4 {[%emt 0:00:05]} axb4 {
[%emt 0:00:05]} 25. Ne3 {[%emt 0:00:31]} Ne7 {[%emt 0:00:48]} 26. h4 {[%emt 0:
00:20]} Nc6 {[%emt 0:00:10]} 27. f4 {[%emt 0:01:23]} Bc8 {[%emt 0:00:08]} 28.
Kf3 {[%emt 0:00:12]} b6 {[%emt 0:00:44]} 29. Rxd8 {[%emt 0:00:46]} Rxd8 {[%emt
0:01:02]} 30. Rd1 {[%emt 0:00:02]} Rxd1 {[%emt 0:00:19]} 31. Nxd1 {[%emt 0:00:
01]} Nd4+ {[%emt 0:00:35]} 32. Nxd4 {[%emt 0:00:12]} cxd4 {[%emt 0:00:01]} 33.
f5 {[%emt 0:00:28]} c5 {[%emt 0:01:03]} 34. Kf4 {[%emt 0:00:08]} Ba6 {[%emt 0:
00:03]} 35. Nb2 {[%emt 0:00:16]} Be2 {[%emt 0:00:14]} 36. g5 {[%emt 0:00:09]}
fxg5+ {[%emt 0:00:49]} 37. hxg5 {[%emt 0:00:06]} h5 {[%emt 0:00:04]} 38. g6+ {
[%emt 0:00:30]} Ke7 {[%emt 0:00:11]} 39. Kg5 {[%emt 0:00:05]} h4 {[%emt 0:00:
26]} 40. Kxh4 {[%emt 0:00:17]} Kf6 {[%emt 0:00:06]} 41. Kg3 {[%emt 0:00:06]}
Ke5 {[%emt 0:00:04]} 42. Nd3+ {[%emt 0:00:38]} Bxd3 {[%emt 0:00:32]} 43. cxd3 {
[%emt 0:00:02]} c4 {[%emt 0:00:00]} 44. dxc4 {[%emt 0:00:12]} d3 {[%emt 0:00:
02]} 45. Kf2 {[%emt 0:00:09]} Kd4 {[%emt 0:00:04]} 46. Ke1 {[%emt 0:01:48]} Kc3
{[%emt 0:00:01]} 47. Kd1 {[%emt 0:00:01]} Kxb3 {[%emt 0:00:01]} 48. f6 {[%emt
0:00:02]} 1-0